Cogmind - Beta 11 X8 @@@ ROGUE MODE // 2021.12.10 @ 08:16:01 Player: Sandwich Result: Self-destructed Performance ------------- Evolutions (4) 2000 Regions Visited (12) 2400 Robots Destroyed (39) 195 Value Destroyed (1676) 1676 Prototype IDs (29) 580 Alien Tech Used (0) 0 Bonus (472) 472 TOTAL SCORE: 7323 Bonus ------- High Alert Combat Kills 13 Follower Combat Kills 274 Aligned with FarCom 300 Friendly Fire -115 Cogmind --------- Core Integrity 594/850 Matter 239/300 Energy 83/100 System Corruption 9% Temperature Cool (18) Movement Core (350) Ox6 Location -6/Extension Parts ------- > --- POWER (2) -------- (None) > --- PROPULSION (4) --- (None) > --- UTILITY (7) ------ Large Storage Unit Improved Signal Interpreter Core Analyzer > --- WEAPON (2) ------- (None) > --- INVENTORY (15) --- Large Storage Unit Improved Sensor Array Improved Signal Interpreter Improved Terrain Scan Processor Advanced Terrain Scan Processor Advanced Terrain Scan Processor Heavy Laser Latent Energy Streamer Peak State ------------ > --- POWER ------------ Light Angular Momentum Engine Neutrino Core > --- PROPULSION ------- Carbon-fiber Leg Improved Carbon-fiber Leg Improved Carbon-fiber Leg Flexi-carbon Leg > --- UTILITY ---------- Large Storage Unit Compact Battery Improved Signal Interpreter Advanced Targeting Computer Core Analyzer Weapon Cycler Hardlight Generator > --- WEAPON ----------- Latent Energy Streamer Minigun > --- INVENTORY -------- Light Angular Momentum Engine Improved Carbon-fiber Leg Advanced Heat Sink Large Storage Unit Improved Sensor Array Improved Signal Interpreter Improved Terrain Scan Processor Advanced Terrain Scan Processor Advanced Terrain Scan Processor Heavy Laser Heavy Laser Heavy Laser [Rating: 65] Favorites ----------- Power Heavy Deuterium Engine Engine Heavy Deuterium Engine Power Core Neutrino Core Propulsion Light Treads Treads Light Treads Leg Improved Carbon-fiber Leg Wheel Compact Wheel Hover Unit Aerolev Unit Utility Large Storage Unit Device Improved Sensor Array Storage Large Storage Unit Processor Improved Signal Interpreter Hackware Hacking Suite Protection Improved Medium Armor Plating Weapon Minigun Energy Gun EM Pulse Gun Energy Cannon Latent Energy Streamer Ballistic Gun Minigun Slashing Weapon Mining Claw Build | -11 -10 -10 -10 -9 -8 -7 -7 -7 -7 -6 -6 -6 ------- Run | Scr Mat Min Exi Min Mat Fac Low Low Zio Pro Fac Ext Slots Evolved 8 | . . . . . 4 2 . . . . 2 . Power 1 | . . . . . . 1 . . . . . . Propulsion 2 | . . . . . 2 . . . . . . . Utility 5 | . . . . . 2 1 . . . . 2 . Weapon . | . . . . . . . . . . . . . Parts Attached 82 | 6 2 1 . . 20 8 2 8 4 1 4 26 Power 9 | 1 . . . . 1 3 . . . . . 4 Engine 6 | 1 . . . . . 2 . . . . . 3 Core 3 | . . . . . 1 1 . . . . . 1 Reactor . | . . . . . . . . . . . . . Propulsion 26 | 2 . . . . 6 2 . 2 4 . . 10 Treads 14 | . . . . . 5 2 . 2 . . . 5 Leg 9 | . . . . . . . . . 4 . . 5 Wheel 2 | 2 . . . . . . . . . . . . Hover 1 | . . . . . 1 . . . . . . . Flight . | . . . . . . . . . . . . . Utility 25 | 1 2 . . . 5 2 2 3 . 1 2 7 Device 11 | . 1 . . . 1 1 1 1 . . 1 5 Storage 3 | 1 1 . . . . . . . . . 1 . Processor 4 | . . . . . 1 . 1 . . 1 . 1 Hackware 1 | . . . . . . . . . . . . 1 Protection 6 | . . . . . 3 1 . 2 . . . . Artifact . | . . . . . . . . . . . . . Weapon 22 | 2 . 1 . . 8 1 . 3 . . 2 5 Energy Gun 4 | . . 1 . . 1 . . . . . . 2 Energy Cannon 6 | . . . . . 2 . . 1 . . 1 2 Ballistic Gun 11 | 2 . . . . 4 1 . 2 . . 1 1 Ballistic Cannon . | . . . . . . . . . . . . . Launcher . | . . . . . . . . . . . . . Special Weapon . | . . . . . . . . . . . . . Impact Weapon . | . . . . . . . . . . . . . Slashing Weapon 1 | . . . . . 1 . . . . . . . Piercing Weapon . | . . . . . . . . . . . . . Special Melee Weapon . | . . . . . . . . . . . . . Unidentified Prototypes 4 | . . . . . 3 1 . . . . . . Corrupted Parts 4 | . . . . . 1 2 . 1 . . . . System Corruption 11 | . . . . . 1 7 . 3 . . . . Parts Lost 36 | . . 2 . . 4 3 . . . . . 27 Power 6 | . . . . . 1 1 . . . . . 4 Propulsion 13 | . . 1 . . 1 2 . . . . . 9 Utility 10 | . . . . . 1 . . . . . . 9 Weapon 7 | . . 1 . . 1 . . . . . . 5 Highest Loss Streak 14 | . . 2 . . 3 3 . . . . . 14 Average Slot Usage (%) 93 | . 97 93 85 85 87 96 100 99 100 100 100 88 Engine 11 | . 14 14 14 14 6 9 15 15 15 15 13 7 Core 1 | . . . . . 1 4 . . . . . 3 Treads 14 | . . . . . 16 28 30 29 24 . . 8 Leg 7 | . . . . . . . . . 6 30 26 14 Wheel 3 | . 28 21 14 14 6 . . . . . . . Device 9 | . 11 14 14 14 4 7 7 6 7 7 13 14 Storage 9 | . 14 14 14 14 9 7 7 7 7 7 13 9 Processor 9 | . . . . . 6 7 14 15 15 15 13 13 Protection 6 | . . . . . 13 15 7 7 7 7 6 2 Energy Gun 3 | . . 5 14 14 6 . . . . . . 4 Ballistic Gun 11 | . 28 22 14 14 4 11 15 14 15 15 12 6 Naked Turns . | . . . . . . . . . . . . . Heaviest Build 64 | 13 29 30 30 30 43 60 55 62 55 55 64 63 Greatest Support 92 | 26 26 26 16 16 82 82 80 88 88 72 72 92 Greatest Overweight (x) 2 | . 1 1 1 1 2 1 . . . . . 2 Average Overweight (x) . | . . 1 1 1 1 . . . . . . . Largest Inventory Capacity 15 | 8 15 15 15 15 15 15 15 15 15 15 15 15 Average Capacity 14 | 7 10 15 15 15 15 15 15 15 15 15 15 15 Most Carried 15 | 3 6 6 12 12 15 15 15 15 15 15 15 15 Average Carried 12 | 1 4 5 9 12 13 14 15 14 15 15 14 12 Final Capacity 15 | 8 15 15 15 15 15 15 15 15 15 15 15 15 Final Carried 15 | 3 6 6 12 12 14 15 15 15 15 15 15 8 Class Distribution -------------------- 49% | Mutant 38% | Scavenger-Mutant 7% | Scavenger-Skirmisher Dominant Class ---------------- Mutant | -10/Materials Mutant | -10/Mines Mutant | -10/Exiles Skirmisher | -9/Mines Mutant | -8/Materials Mutant | -7/Factory Scavenger-Mutant | -7/Lower Caves Scavenger-Mutant | -7/Lower Caves Scavenger-Mutant | -7/Zion Mutant | -6/Proximity Caves Scavenger-Skirmisher | -6/Factory Mutant | -6/Extension Resources | -11 -10 -10 -10 -9 -8 -7 -7 -7 -7 -6 -6 -6 ----------- Run | Scr Mat Min Exi Min Mat Fac Low Low Zio Pro Fac Ext Matter Collected 1760 | 195 . 92 . 25 345 87 120 346 . 56 40 454 Remotely . | . . . . . . . . . . . . . Salvage Created 1967 | . . 92 . . 480 155 46 260 . . 220 714 Parts 88 | . . 5 . . 21 11 2 13 . . 9 27 Haulers Intercepted 2 | . . . . . 2 . . . . . . . Recyclers Shooed 5 | . . . . . 2 . . . . . . 3 Parts Field Recycled . | . . . . . . . . . . . . . Retrieved Matter . | . . . . . . . . . . . . . Parts Self-Destructed 18 | . . . . . . . 2 16 . . . . Prevented 3 | . . . . . . . . 3 . . . . Kills | -11 -10 -10 -10 -9 -8 -7 -7 -7 -7 -6 -6 -6 ------- Run | Scr Mat Min Exi Min Mat Fac Low Low Zio Pro Fac Ext Combat Hostiles Destroyed 26 | . . 2 . . 6 2 1 6 . . 3 6 Melee 2 | . . . . . 2 . . . . . . . Guns 19 | . . 2 . . 3 1 1 6 . . . 6 AOE 5 | . . . . . 1 1 . . . . 3 . Classes Destroyed 13 | . . 1 . . 4 3 1 1 . . 1 2 Builder 2 | . . . . . . 1 . . . . . 1 Tunneler 2 | . . . . . . . . . . . 1 1 Hauler 2 | . . . . . 2 . . . . . . . Recycler 1 | . . . . . . . . . . . . 1 Operator 3 | . . . . . . 1 . . . . . 2 Watcher 2 | . . . . . 1 . . . . . . 1 Swarmer 3 | . . . . . . . . 3 . . . . Grunt 15 | . . 2 . . 4 . . 3 . . 3 3 Sentry 4 | . . . . . 1 1 . . . . . 2 Hunter 1 | . . . . . . 1 . . . . . . Programmer 1 | . . . . . . . 1 . . . . . Heavy 1 | . . . . . 1 . . . . . . . Behemoth 1 | . . . . . . . . . . . . 1 Guerrilla 1 | . . . . . . . . . . . . 1 Best Kill Streak 4 | . . 2 . . 3 2 1 3 . . 4 3 Combat Bots Only 3 | . . 2 . . 3 1 1 3 . . 3 1 Max Kills in Single Turn 3 | . . 1 . . 1 2 1 1 . . 3 2 Gunslinging . | . . . . . . . . . . . . . Exploded 3 | . . . . . 1 1 . . . . 3 . Melee 1 | . . . . . 1 . . . . . . . Uniques/NPCs Destroyed . | . . . . . . . . . . . . . Combat | -11 -10 -10 -10 -9 -8 -7 -7 -7 -7 -6 -6 -6 -------- Run | Scr Mat Min Exi Min Mat Fac Low Low Zio Pro Fac Ext Damage Taken 4538 | . . 360 . 33 672 400 104 521 . 69 20 2359 Core 552 | . . 82 . . 158 56 . . . . . 256 Absorbed by Shields 372 | . . . . . 3 87 . . . . . 282 Core Remaining (%) 82 | 100 . . . 67 71 . . . . 92 . . Volleys Fired 116 | . . 12 . . 16 6 5 23 . . 2 52 Largest 2 | . . 2 . . 2 2 2 2 . . 1 2 Hottest 138 | . . 60 . . 60 60 50 85 . . 60 138 Shots Fired 218 | . . 23 . . 30 7 10 44 . . 3 101 Gun 204 | . . 23 . . 29 2 10 40 . . 1 99 Cannon 14 | . . . . . 1 5 . 4 . . 2 2 Launcher . | . . . . . . . . . . . . . Special . | . . . . . . . . . . . . . Kinetic 171 | . . 21 . . 28 2 10 40 . . 1 69 Thermal 30 | . . . . . . . . . . . . 30 Explosive . | . . . . . . . . . . . . . Electromagnetic 17 | . . 2 . . 2 5 . 4 . . 2 2 Robot Hit Streak 17 | . . 8 . . 7 3 8 11 . . 1 17 Robot Miss Streak 4 | . . 2 . . 1 1 1 4 . . 1 3 Penetration Max . | . . . . . . . . . . . . . Secondary Targets 4 | . . . . . 1 . . . . . . 3 Max Gunslinging Chain 1 | . . . . . 1 . . . . . . 1 Shots Hit Robots 175 | . . 16 . . 46 5 8 24 . . 1 75 Core Hits 91 | . . 4 . . 16 8 2 18 . . 7 36 Critical Kills 2 | . . . . . 1 . 1 . . . . . Critical Parts Destroyed . | . . . . . . . . . . . . . Critical Strikes 3 | . . . . . 1 . 1 . . . . 1 Burn 1 | . . . . . . . . . . . . 1 Destroy 2 | . . . . . 1 . 1 . . . . . Melee Attacks 32 | . . . . . 32 . . . . . . . Impact . | . . . . . . . . . . . . . Slashing 32 | . . . . . 32 . . . . . . . Piercing . | . . . . . . . . . . . . . Sneak Attacks 2 | . . . . . 2 . . . . . . . Combat Hostiles . | . . . . . . . . . . . . . Follow-up Attacks . | . . . . . . . . . . . . . Damage Inflicted 4726 | . . 178 . . 1175 629 170 501 . . 439 1634 Guns 2427 | . . 178 . . 366 36 170 382 . . . 1295 Cannons 53 | . . . . . . 25 . 11 . . 8 9 Explosions 1595 | . . . . . 158 568 . 108 . . 431 330 Melee 651 | . . . . . 651 . . . . . . . Ramming . | . . . . . . . . . . . . . Kinetic 2016 | . . 148 . . 355 36 170 382 . . . 925 Thermal 424 | . . . . . 54 . . . . . . 370 Explosive 159 | . . . . . . 159 . . . . . . Electromagnetic 1476 | . . 30 . . 115 434 . 119 . . 439 339 Impact . | . . . . . . . . . . . . . Slashing 651 | . . . . . 651 . . . . . . . Piercing . | . . . . . . . . . . . . . Highest Corruption 27 | . . . . . 4 20 20 27 27 . 6 9 Average Corruption 13 | . . . . . 3 13 20 20 27 . 5 7 Corruption Purged . | . . . . . . . . . . . . . Effects 118 | . . . . . 1 17 15 39 5 . 5 36 Message Errors 27 | . . . . . . 6 2 7 3 . . 9 Matter Fused 31 | . . . . . 1 5 6 10 1 . 2 6 Heat Flow Errors 12 | . . . . . . 1 . 6 . . . 5 Energy Discharges 13 | . . . . . . 2 4 2 1 . . 4 Parts Rejected 2 | . . . . . . . . . . . . 2 Data Loss (minor) 12 | . . . . . . 1 . 6 . . 2 3 Data Loss (major) 5 | . . . . . . 1 1 2 . . . 1 Misfires 6 | . . . . . . . 1 1 . . 1 3 Alerts 3 | . . . . . . 1 . 2 . . . . Weapon Failures 7 | . . . . . . . 1 3 . . . 3 Overload Shots . | . . . . . . . . . . . . . Overflow Damage 170 | . . . . . 48 117 . . . . 5 . Projectiles . | . . . . . . . . . . . . . Explosions 122 | . . . . . . 117 . . . . 5 . Melee 48 | . . . . . 48 . . . . . . . Knockbacks . | . . . . . . . . . . . . . Impact . | . . . . . . . . . . . . . Kinetic . | . . . . . . . . . . . . . Secondary . | . . . . . . . . . . . . . Self-Inflicted Damage 317 | . . . . . . 317 . . . . . . Shots 5 | . . . . . . 5 . . . . . . Rammed . | . . . . . . . . . . . . . Targets Rammed . | . . . . . . . . . . . . . Kicked . | . . . . . . . . . . . . . Crushed . | . . . . . . . . . . . . . Highest Temperature 358 | . . 35 . 7 253 254 28 247 . . 87 358 Average Temperature 72 | . . 18 . 7 49 93 11 61 . . 40 95 Received Heat Transfer 1508 | . . 201 . 36 378 . . 126 . . 9 758 Effects 2 | . . . . . . . . . . . . 2 Shutdowns 1 | . . . . . . . . . . . . 1 Matter Decay 1 | . . . . . . . . . . . . 1 Siege Activations . | . . . . . . . . . . . . . Robots Corrupted . | . . . . . . . . . . . . . Combat Hostiles . | . . . . . . . . . . . . . Parts Fried 8 | . . . . . . 3 . . . . 2 3 Impact Corruptions . | . . . . . . . . . . . . . Robots Melted . | . . . . . . . . . . . . . Combat Hostiles . | . . . . . . . . . . . . . Parts Melted 4 | . . . . . . . . . . . . 4 Heat Transferred 790 | . . . . . 50 . . . . . . 740 Parts Sabotaged . | . . . . . . . . . . . . . Parts Stolen . | . . . . . . . . . . . . . Parts Stripped . | . . . . . . . . . . . . . Power Chain Reactions . | . . . . . . . . . . . . . Missiles Intercepted . | . . . . . . . . . . . . . Latent Energy Used 1484 | . . . . . 200 669 . 99 . . 369 147 LE Corruption 28 | . . . . . 3 12 . 4 . . 6 3 Alert | -11 -10 -10 -10 -9 -8 -7 -7 -7 -7 -6 -6 -6 ------- Run | Scr Mat Min Exi Min Mat Fac Low Low Zio Pro Fac Ext Peak Influence 526 | . 44 46 . . 182 526 . . . . 139 328 Initial 82 | . . 16 . . . 82 . . . . 18 67 Average 106 | . 22 27 . . 44 310 . . . . 65 73 Maximum Alert Level 2 | . . . . . . 2 . . . . . 1 Low Security (%) 84 | 100 100 100 . 100 100 39 . . . . 100 89 Level 1 10 | . . . . . . 34 . . . . . 10 Level 2 5 | . . . . . . 26 . . . . . . Level 3 . | . . . . . . . . . . . . . Level 4 . | . . . . . . . . . . . . . Level 5 . | . . . . . . . . . . . . . High Security . | . . . . . . . . . . . . . Max Security . | . . . . . . . . . . . . . Squads Dispatched 10 | . 3 . . . 1 2 . . . . 1 3 Investigation 1 | . 1 . . . . . . . . . . . Extermination 1 | . . . . . . . . . . . 1 . Reinforcement 6 | . 2 . . . 1 . . . . . . 3 Assault 1 | . . . . . . 1 . . . . . . Garrison 1 | . . . . . . 1 . . . . . . Intercept . | . . . . . . . . . . . . . Construction Impeded 1 | . . . . . . . . . . . . 1 Haulers Reinforced . | . . . . . . . . . . . . . Active Scanning Responses . | . . . . . . . . . . . . . Cargo Convoy Interrupts . | . . . . . . . . . . . . . Stealth | -11 -10 -10 -10 -9 -8 -7 -7 -7 -7 -6 -6 -6 --------- Run | Scr Mat Min Exi Min Mat Fac Low Low Zio Pro Fac Ext Distress Signals 2 | . . . . . 1 . . . . . . 1 Communications Jammed . | . . . . . . . . . . . . . Distress Signals . | . . . . . . . . . . . . . Times Spotted 59 | . 3 2 . 2 9 2 1 11 . 4 3 22 Peak Tracking Total 7 | . 1 2 . 2 3 1 1 4 . 3 3 7 Tactical Retreats 5 | . . . . . . 1 . 1 . 2 . 1 Traps | -11 -10 -10 -10 -9 -8 -7 -7 -7 -7 -6 -6 -6 ------- Run | Scr Mat Min Exi Min Mat Fac Low Low Zio Pro Fac Ext Traps Triggered 3 | . 1 . . . . . . . . . 1 1 Indirectly 1 | . . . . . . . . . . . 1 . Trap Hack Attempts . | . . . . . . . . . . . . . Triggered . | . . . . . . . . . . . . . Disarmed . | . . . . . . . . . . . . . Reprogrammed . | . . . . . . . . . . . . . Reused . | . . . . . . . . . . . . . Traps Extracted . | . . . . . . . . . . . . . Installed . | . . . . . . . . . . . . . Triggered . | . . . . . . . . . . . . . Machines | -11 -10 -10 -10 -9 -8 -7 -7 -7 -7 -6 -6 -6 ---------- Run | Scr Mat Min Exi Min Mat Fac Low Low Zio Pro Fac Ext Machines Disabled 17 | . . . . . 3 13 . . . . 1 . Max in Single Turn 4 | . . . . . 2 4 . . . . 1 . Garrison Access 1 | . . . . . . 1 . . . . . . Machines Sabotaged . | . . . . . . . . . . . . . Garrisons Compromised . | . . . . . . . . . . . . . Overloaded Fab Kills . | . . . . . . . . . . . . . Hacking | -11 -10 -10 -10 -9 -8 -7 -7 -7 -7 -6 -6 -6 --------- Run | Scr Mat Min Exi Min Mat Fac Low Low Zio Pro Fac Ext Machines Accessed 17 | . 2 . 3 . . 2 . . . . 2 8 Terminals 14 | . 2 . . . . 2 . . . . 2 8 Fabricators . | . . . . . . . . . . . . . Repair Stations . | . . . . . . . . . . . . . Recycling Units . | . . . . . . . . . . . . . Scanalyzers . | . . . . . . . . . . . . . Garrison Access . | . . . . . . . . . . . . . Total Hacks 48 | . 11 . 17 . . 3 . . . . 5 12 Successful 34 | . 8 . 17 . . . . . . . 2 7 Failed 14 | . 3 . . . . 3 . . . . 3 5 Catastrophic 3 | . . . . . . 2 . . . . . 1 Database Lockouts . | . . . . . . . . . . . . . Manual 5 | . 3 . 1 . . . . . . . . 1 Terminals 31 | . 11 . . . . 3 . . . . 5 12 Fabricators . | . . . . . . . . . . . . . Repair Stations . | . . . . . . . . . . . . . Recycling Units . | . . . . . . . . . . . . . Scanalyzers . | . . . . . . . . . . . . . Garrison Access . | . . . . . . . . . . . . . Terminal Hacks 32 | . 6 . 17 . . . . . . . 2 7 Record 16 | . . . 16 . . . . . . . . . Prototype ID Bank 1 | . 1 . . . . . . . . . . . Open Door 8 | . . . . . . . . . . . 1 7 Dispatch Records 1 | . 1 . . . . . . . . . . . Recall Reinforcements 1 | . 1 . . . . . . . . . . . Hauler Manifests 2 | . 2 . . . . . . . . . . . Zone Layout 2 | . 1 . . . . . . . . . 1 . EX-Prototype ID Bank 1 | . . . 1 . . . . . . . . . Fabricator Hacks . | . . . . . . . . . . . . . Repair Station Hacks . | . . . . . . . . . . . . . Recycling Unit Hacks . | . . . . . . . . . . . . . Scanalyzer . | . . . . . . . . . . . . . Garrison Access Hacks . | . . . . . . . . . . . . . Unauthorized Hacks 2 | . 2 . . . . . . . . . . . Terminals 2 | . 2 . . . . . . . . . . . Track 1 | . 1 . . . . . . . . . . . Botnet 1 | . 1 . . . . . . . . . . . Fabricators . | . . . . . . . . . . . . . Repair Stations . | . . . . . . . . . . . . . Recycling Units . | . . . . . . . . . . . . . Scanalyzers . | . . . . . . . . . . . . . Garrison Access . | . . . . . . . . . . . . . Data Cores Recovered 1 | . . . . . . 1 . . . . . . Used . | . . . . . . . . . . . . . Hacking Detections 9 | . 2 . . . . 2 . . . . 2 3 Full Trace Events . | . . . . . . . . . . . . . Feedback Events . | . . . . . . . . . . . . . Feedback Blocked . | . . . . . . . . . . . . . Robot Schematics Acquired . | . . . . . . . . . . . . . Robots Built . | . . . . . . . . . . . . . Authchips . | . . . . . . . . . . . . . Time . | . . . . . . . . . . . . . Total Robot Build Rating . | . . . . . . . . . . . . . Part Schematics Acquired . | . . . . . . . . . . . . . Parts Built . | . . . . . . . . . . . . . Authchips . | . . . . . . . . . . . . . Time . | . . . . . . . . . . . . . Total Part Build Rating . | . . . . . . . . . . . . . Parts Repaired . | . . . . . . . . . . . . . Time . | . . . . . . . . . . . . . Parts Recycled . | . . . . . . . . . . . . . Recycled Matter . | . . . . . . . . . . . . . Retrieved Matter . | . . . . . . . . . . . . . Retrieved Components . | . . . . . . . . . . . . . Parts Scanalyzed . | . . . . . . . . . . . . . Part Schematics Acquired . | . . . . . . . . . . . . . Parts Damaged . | . . . . . . . . . . . . . Bothacking | -11 -10 -10 -10 -9 -8 -7 -7 -7 -7 -6 -6 -6 ------------ Run | Scr Mat Min Exi Min Mat Fac Low Low Zio Pro Fac Ext Used RIF Installer . | . . . . . . . . . . . . . Robots Hacked . | . . . . . . . . . . . . . Non-combat . | . . . . . . . . . . . . . Combat . | . . . . . . . . . . . . . Robot Hacks Applied . | . . . . . . . . . . . . . Relay Couplers Released 2 | . . . . . . 2 . . . . . . Machine Destruction 2 | . . . . . . 2 . . . . . . Fabnet Peak Effective % . | . . . . . . . . . . . . . Robots Rewired 3 | . . . . . . . . . . . . 3 Allies Hacked . | . . . . . . . . . . . . . Hacks Repelled . | . . . . . . . . . . . . . Allies | -11 -10 -10 -10 -9 -8 -7 -7 -7 -7 -6 -6 -6 -------- Run | Scr Mat Min Exi Min Mat Fac Low Low Zio Pro Fac Ext Total Allies 16 | . . . . . . . . . . . . 16 Largest Group 10 | . . . . . . . . . . . . 10 Highest-Rated Group 293 | . . . . . . . . . . . . 293 Highest-Rated Ally 37 | . . . . . . . . . . . . 37 Total Orders . | . . . . . . . . . . . . . Ally Attacks 87 | . . . . . . . . . . . . 87 Total Damage 1936 | . . . . . . . . . . . . 1936 Kills 12 | . . . . . . . . . . . . 12 Allies Corrupted . | . . . . . . . . . . . . . Allies Melted . | . . . . . . . . . . . . . Intel | -11 -10 -10 -10 -9 -8 -7 -7 -7 -7 -6 -6 -6 ------- Run | Scr Mat Min Exi Min Mat Fac Low Low Zio Pro Fac Ext Robot Analysis Total . | . . . . . . . . . . . . . Derelict Logs Recovered 1 | . . 1 . . . . . . . . . . Drone Launches . | . . . . . . . . . . . . . Drone Recoveries . | . . . . . . . . . . . . . Exploration | -11 -10 -10 -10 -9 -8 -7 -7 -7 -7 -6 -6 -6 ------------- Run | Scr Mat Min Exi Min Mat Fac Low Low Zio Pro Fac Ext Turns Passed 5327 | 45 147 154 537 38 648 598 348 810 146 431 317 1108 Spaces Moved 3197 | 42 136 105 463 34 309 309 199 436 92 332 201 539 Core 11 | 11 . . . . . . . . . . . . Treads 1282 | . . . . . 80 309 199 436 71 . . 187 Legs 906 | . . . . . . . . . 21 332 201 352 Wheels 998 | 31 136 105 463 34 229 . . . . . . . Hover . | . . . . . . . . . . . . . Flight . | . . . . . . . . . . . . . Fastest Speed 50 | 50 90 105 115 115 115 158 162 162 120 120 120 120 Average Speed 136 | 79 94 109 115 115 134 165 162 162 152 120 120 146 Slowest Speed 320 | 100 105 115 115 115 240 245 162 163 162 120 120 320 Overloaded Moves . | . . . . . . . . . . . . . Propulsion Burnouts . | . . . . . . . . . . . . . Robots Hopped . | . . . . . . . . . . . . . Cave-ins Triggered . | . . . . . . . . . . . . . Exploration Rate (%) 32 | 3 35 28 90 14 25 10 41 52 10 60 6 42 Regions Visited 12 Branch Regions 8 Pre-discovered Areas . | . . . . . . . . . . . . . Known Exits Taken 6 | . . . . . 1 . 1 1 1 1 1 . Unknown Exits Taken 6 | 1 1 1 1 1 . 1 . . . . . . Scrap Searched 6 | . . . . 1 . . 3 1 . 1 . . Spaces Dug . | . . . . . . . . . . . . . Terrain Destroyed 109 | . . . . . 35 58 . . . . 16 . Melee . | . . . . . . . . . . . . . Projectile . | . . . . . . . . . . . . . AOE 109 | . . . . . 35 58 . . . . 16 . Terrain Rammed . | . . . . . . . . . . . . . Walls Destroyed . | . . . . . . . . . . . . . Machines Disabled . | . . . . . . . . . . . . . Actions | -11 -10 -10 -10 -9 -8 -7 -7 -7 -7 -6 -6 -6 --------- Run | Scr Mat Min Exi Min Mat Fac Low Low Zio Pro Fac Ext Total 3913 | 50 154 122 467 33 454 392 216 500 95 364 275 791 Wait 391 | . 13 4 . . 55 50 11 31 . 31 65 131 Move 3185 | 41 135 104 462 33 308 308 198 435 91 331 200 539 Hop . | . . . . . . . . . . . . . Pick Up 46 | 3 3 1 5 . 13 10 . 1 . . 3 7 Fast Attach 35 | 6 1 . . . 7 5 . 3 . 1 . 12 Attach 21 | . . 1 . . 6 2 . . . . 2 10 Detach 4 | . . . . . 1 1 . . . . . 2 Swap 26 | . 1 . . . 7 1 2 5 4 . 2 4 Drop 33 | . 1 . . . 9 9 . 2 . 1 1 10 Fire 116 | . . 12 . . 16 6 5 23 . . 2 52 Melee 32 | . . . . . 32 . . . . . . . Ram . | . . . . . . . . . . . . . Kick . | . . . . . . . . . . . . . Crush . | . . . . . . . . . . . . . Escape Stasis 5 | . . . . . . . . . . . . 5 Rewire 19 | . . . . . . . . . . . . 19 Trap . | . . . . . . . . . . . . . Miscellaneous . | . . . . . . . . . . . . . Route ------- -11/Scrapyard -10/Materials -10/Mines (discovered 2 exits: [*Mat] / *Exi) -10/Exiles -9/Mines -8/Materials (discovered 2 exits: *Fac x2) -7/Factory -7/Lower Caves -7/Lower Caves (discovered 2 exits: *Fac / *Zio) -7/Zion -6/Proximity Caves -6/Factory -6/Extension History --------- Turn | Location | Event 8 | -11/Scrapyard | Discovered new exit (range 15) 46 | -11/Scrapyard | Entered Materials 186 | -10/Materials | Discovered new exit (range 6) 193 | -10/Materials | Entered Mines 209 | -10/Mines | Met a Derelict bent on vengeance 246 | -10/Mines | Discovered new exit (range 9) 247 | -10/Mines | Learned 4 Materials zone layouts 306 | -10/Mines | Build established: Mutant 341 | -10/Mines | Deemed a non-threat by the Exiles lab entrance 342 | -10/Mines | Discovered new exit (range 5) 347 | -10/Mines | Entered Exiles 380 | -10/Exiles | Met 8R-AWN 398 | -10/Exiles | Met EX-HEX 447 | -10/Exiles | Met EX-BIN 471 | -10/Exiles | Aligned with FarCom system 472 | -10/Exiles | Given EX-Vault access code 509 | -10/Exiles | Opened EX-Vault 517 | -10/Exiles | Found Latent Energy Streamer 540 | -10/Exiles | Warned to stay clear of 0b10 Research branches 577 | -10/Exiles | Met EX-DEC 643 | -10/Exiles | Visited The Gauntlet 871 | -10/Exiles | Discovered new exit (range 14) 884 | -10/Exiles | Left Exiles lab with Latent Energy Streamer 884 | -10/Exiles | Entered Mines 911 | -9/Mines | Discovered new exit (range 11) 922 | -9/Mines | Entered Materials 922 | -8/Materials | Evolved 4 slots: Propulsion x2, Utility x2 923 | -8/Materials | Identified exit to Factory 1455 | -8/Materials | Lost 3 parts (1p1n1u) 1551 | -8/Materials | Discovered exit to Factory (range 9) 1570 | -8/Materials | Entered Factory 1570 | -7/Factory | Evolved 2 slots: Power x1, Utility x1 1806 | -7/Factory | Garrison activated, responded to threat 1812 | -7/Factory | System corruption reached 10% 1835 | -7/Factory | Lost 3 parts (1p2n) 2126 | -7/Factory | Discovered new exit (range 5) 2168 | -7/Factory | Entered Lower Caves 2191 | -7/Lower Caves | Build established: Scavenger-Mutant 2502 | -7/Lower Caves | Discovered new exit (range 10) 2515 | -7/Lower Caves | Identified exit to Lower Caves 2516 | -7/Lower Caves | Entered another Lower Caves area 2703 | -7/Lower Caves | Discovered new exit (range 6) 2709 | -7/Lower Caves | Identified exit to Factory 2890 | -7/Lower Caves | Encountered a Warlord checkpoint 3284 | -7/Lower Caves | Discovered new exit (range 9) 3296 | -7/Lower Caves | Identified exit to Zion 3326 | -7/Lower Caves | Entered Zion 3406 | -7/Zion | System corruption cleaned by Quarantine Array 3460 | -7/Zion | Discovered new exit (range 11) 3470 | -7/Zion | Identified exit to Proximity Caves 3472 | -7/Zion | Entered Proximity Caves 3734 | -6/Proximity Caves | Build established: Mutant 3751 | -6/Proximity Caves | Spotted B-75 Beast 3855 | -6/Proximity Caves | Attracted the attention of an 0b10 checkpoint 3886 | -6/Proximity Caves | Discovered exit to Factory (range 12) 3903 | -6/Proximity Caves | Entered Factory 3903 | -6/Factory | Evolved 2 slots: Utility x2 4201 | -6/Factory | Build established: Scavenger-Skirmisher 4211 | -6/Factory | Discovered new exit (range 10) 4219 | -6/Factory | Identified exit to Extension 4220 | -6/Factory | Entered Extension 4322 | -6/Extension | Rescued a captive Derelict 4323 | -6/Extension | Rescued a captive Derelict 4477 | -6/Extension | Rescued a captive Derelict 4478 | -6/Extension | Rescued a captive Derelict 4488 | -6/Extension | Rescued a captive Derelict 4490 | -6/Extension | Rescued a captive Derelict 4558 | -6/Extension | Rescued a captive Derelict 4579 | -6/Extension | Rescued a captive Derelict 4675 | -6/Extension | Allied Derelicts emerged from ambush trap array 4680 | -6/Extension | Rescued a captive Derelict 4698 | -6/Extension | Rescued a captive Derelict 4731 | -6/Extension | Spotted B-75 Beast 4744 | -6/Extension | Spotted B-75 Beast 4772 | -6/Extension | Destroyed B-75 Beast 4805 | -6/Extension | Build established: Scavenger-Mutant 4850 | -6/Extension | Lost 11 parts (4n5u2w) 5070 | -6/Extension | Disrupted transfer network 5328 | -6/Extension | Self-destructed Last Messages --------------- 05262_ Phase Shifter destroyed. 05275_ Critical hit (Burn: +50). 05282_ Imp. Treads destroyed. 05286_ Hvy. Laser destroyed. 05291_ Imp. Cryofiber Web destroyed. 05291_ Imp. Particle Charger destroyed. 05298_ System corrupted: Energy discharge (-34). 05298_ Hvy. Laser destroyed. 05309_ Imp. Treads destroyed. 05310_ Critical hit (Burn: +37). 05319_ K-01 Serf enters Transfer Station. 05320_ System corrupted: Imp. Carbon-fiber Leg rejected. 05320_ Acquired Imp. Carbon-fiber Leg. 05320_ U-05 Engineer enters Transfer Station. 05325_ K-01 Serf enters Transfer Station. 05327_ R-10 Processor exits Transfer Station. 05327_ U-05 Engineer exits Transfer Station. 05328_ K-01 Serf enters Transfer Station. 05328_ Weapon Cycler destroyed. 05328_ Imp. Carbon-fiber Leg destroyed. Map ----- +----------------------------------------------------+ | ????## ##?????#T #???????#####???? | | ?????# #??????## ##???????????????? | | ?????# #???????# #????????????????? | | ?????# #???????####????????????????? | | ?????# #???????????????????????????? | | ?????# #???????????????????????????? | | ?????# #???????????????????????????? | | ?????# #???????????????????????????? | | ?????# #???????????????????????????? | | ?????# #???????????????????????????? | | ?????# #???????????????????????????? | | ?????# #???????????????????????????? | | ?????# #???????????????????????????? | | ?????# #???????????????????????????? | | ?????# #???????????????????????????? | | ?????# #???????????????????????????? | | ?????# #???????????????????????????? | | ?????# #???????????????????????????? | | ?????# #???????????????????????????? | | ?????# #???????????????????????????? | | ?????# #???????????????????????????? | | ?##### #####???????????????????????? | | ?# "" "" #???????????????????????? | | ?# " " ######################### | | ?# | | ?# @ u | | ?# g | | ?# gk | | ?# g | | ?# u######################### | | ?# R #???????????????????????? | | ?###" "###???????????????????????? | | ???#" "#?????????????????????????? | | ???#"""""#?????????????????????????? | | ???#######?????????????????????????? | | ???????????????????????????????????? | | ???????????????????????????????????? | | | | | | | | | | | | | | | | | | | | | | | | | | | +----------------------------------------------------+ Best States ------------- Heat Dissipation 56 Energy Generation 32 Energy Capacity 700 Matter Stores 300 Matter Capacity 300 Sight Range 16 Robot Scan Range 15 Terrain Scan Range 14 Terrain Scan Density 10 Base Temperature (-) 150 Armor Coverage 225 Weapon Shielding 33 Weapon Cycling 15 Phase Shifting 5 Evasion (%) 55 Targeting Accuracy 8 Melee Accuracy 5 Core Analysis 6 Recoil Reduction 4 Particle Charging 20 Offensive Hacking 10 Item Schematics ----------------- None Robot Schematics ------------------ None Fabricated ------------ Nothing Alien Tech Used ----------------- None Achievements -------------- None Challenges ------------ None Game ------ Seed RocketStructuralDiverter Manual? 0 Play Time 00:51:52 Cumulative 186.2 hours Start 2021.12.06 @ 14:02:26 End 2021.12.10 @ 08:16:01 Sessions 3 Manual Loads 0 Difficulty Rogue Special Mode None Game No. 237 Rogue 193 Adventurer 4 Explorer 40 Win Type - Total 4 Types 3/1/0/0/0/0/0/0/0 Lore% 52 Gallery% 75 Achievement% 58 Wizard Run 0 Options --------- ASCII 0 Keyboard 0 Movement Numpad Keybinds 0 Fullscreen 1 Font 18/SmallcapsGlow Map View 76x50 Tactical HUD 1 Map Filters NONE Filters NONE Steam 1 RUN: 26c1838f-f1a5-4107-87f8-ab9506165244